bitfinex-derivatives/quotes_ETHF0:USTF0_20250205
["timestamp","ask_amount","ask_price","bid_price","bid_amount"]
[1738779262499,0.00550398,2728.4,2728.0,3.2078]
[1738779262706,4.16882084,2729.4,2728.5,0.7328]
[1738779262907,4.50574557,2729.2,2728.6,0.73278]
[1738779263099,4.50574557,2728.8,2728.6,12.50410456]
[1738779263300,7.71354557,2728.9,2728.6,4.65508275]
[1738779263501,3.2078,2728.9,2728.6,4.65508275]
[1738779264001,0.00550398,2729.0,2728.7,7.63413245]
[1738779264500,3.2078,2728.9,2728.5,7.49094715]
[1738779264706,0.00550398,2729.0,2728.9,0.73271]
[1738779264998,4.16882084,2729.4,2728.9,24.75975915]
[1738779265198,4.16882084,2729.4,2729.3,8.21804317]
[1738779265403,0.56151309,2729.6,2729.5,0.73255]
[1738779265607,0.56151309,2729.6,2729.3,66.3868205]
[1738779265608,3.61528341,2729.6,2729.3,66.3868205]
[1738779265800,5.43872621,2729.9,2729.8,0.73247]
[1738779266105,8.29463738,2730.2,2730.1,0.73239]
[1738779266299,8.29463738,2730.2,2730.1,3.94019]
[1738779266501,8.08473737,2730.2,2730.1,21.36876606]
[1738779266707,7.53283737,2730.2,2730.1,62.16876606]
[1738779266908,6.02835132,2730.2,2730.1,62.16876606]
[1738779267107,5.73538185,2730.2,2730.1,62.16876606]
[1738779267403,9.71885933,2730.4,2730.3,0.73234]
[1738779267404,5.84312348,2730.4,2730.3,0.73234]
[1738779267601,23.5478208,2730.5,2730.4,0.73231]
[1738779267804,23.3278208,2730.5,2730.4,3.94011]
[1738779268105,22.8878208,2730.5,2730.4,21.60456072]
[1738779268300,20.5860208,2730.5,2730.4,21.60456072]
[1738779268506,6.68314223,2730.5,2730.4,21.60456072]
[1738779268702,20.7888919,2731.0,2730.4,21.23865072]
[1738779268910,20.7888919,2731.0,2730.9,7.48544317]
[1738779269113,25.29463747,2731.0,2730.5,4.64404317]
[1738779269408,25.29463747,2731.0,2730.9,4.86019704]
[1738779269601,25.29463747,2731.0,2730.9,4.27764317]
[1738779269602,20.7888919,2731.0,2730.9,4.27764317]
[1738779269803,20.7888919,2731.0,2730.9,9.13784021]
[1738779270001,3.2078,2731.2,2730.9,9.13784021]
[1738779270213,3.2078,2731.2,2730.9,4.27764317]
[1738779270507,4.50574557,2731.1,2730.2,3.2078]
[1738779270699,7.71354557,2730.3,2729.2,4.27764317]
[1738779270907,7.71354557,2730.0,2729.3,0.3664]
[1738779271303,12.71354557,2730.0,2729.3,0.3664]
[1738779271706,12.71354557,2730.0,2729.9,4.86356881]
[1738779273411,12.71354557,2730.0,2729.9,0.00550398]
[1738779274603,4.50574557,2730.0,2729.9,0.00550398]
[1738779274803,9.50574557,2730.0,2729.9,0.00550398]
[1738779275216,3.2078,2730.1,2729.9,5.18918922]
[1738779275508,4.50574557,2730.0,2729.9,0.00550398]
[1738779276207,3.2078,2730.4,2729.9,4.73634715]
[1738779276401,7.71354557,2730.4,2730.1,0.73237]
[1738779276603,7.71354557,2730.4,2729.9,4.73634715]
[1738779276804,7.71354557,2730.4,2730.2,4.71420629]
[1738779277019,7.71354557,2730.4,2730.0,4.71420629]
[1738779277314,7.71354557,2730.4,2729.9,0.00550398]
[1738779277315,4.50574557,2730.0,2729.9,0.00550398]
[1738779277707,4.50574557,2730.0,2729.9,4.65751638]
[1738779278103,9.50574557,2730.0,2729.9,4.65751638]
[1738779278314,9.50574557,2730.0,2729.9,0.00550398]
[1738779279312,9.50574557,2730.0,2729.9,4.79040993]
[1738779280911,3.2078,2730.1,2729.9,4.79040993]
[1738779281107,4.50574557,2730.0,2729.9,4.79040993]
[1738779283016,9.50574557,2730.0,2729.9,0.00550398]
[1738779283212,9.50574557,2730.0,2729.2,40.8]
[1738779283411,4.50574557,2729.3,2728.7,0.3664]
[1738779283607,4.50574557,2729.7,2728.8,4.27764317]
[1738779283817,3.2078,2729.8,2729.5,0.73253]
[1738779284018,3.2078,2729.8,2729.2,7.48544317]
[1738779284316,3.2078,2729.8,2729.6,4.84358657]
[1738779284517,3.21327005,2729.8,2729.3,4.86392164]
[1738779284707,7.71354557,2729.5,2729.2,0.0054938]
[1738779284911,4.50574557,2729.3,2729.2,0.0054938]
[1738779285113,4.50574557,2729.3,2728.4,21.20964317]
[1738779285316,3.2078,2728.5,2728.3,0.3664]
[1738779285517,4.50574557,2728.4,2727.5,0.3672]
[1738779285716,3.2078,2727.8,2727.6,0.3672]
[1738779286017,7.71354557,2727.8,2727.5,0.3672]
[1738779286216,7.71354557,2727.8,2727.2,0.3672]
[1738779286612,7.71354557,2727.8,2727.4,0.0054938]
[1738779287017,7.71354557,2727.8,2727.5,4.85754344]
[1738779287212,7.71354557,2727.8,2727.5,9.86825661]
[1738779287213,3.2078,2727.8,2727.5,9.86825661]
[1738779287419,4.1575,2728.6,2727.5,21.64656177]
[1738779287620,8.66324557,2728.6,2728.0,4.27764317]
[1738779287813,3.2078,2728.3,2728.0,4.27764317]
[1738779288014,8.66324557,2728.6,2728.1,4.86115034]
[1738779288413,3.2078,2728.3,2728.1,4.86115034]
[1738779288618,8.66324557,2728.6,2728.1,4.86115034]
[1738779288822,3.21327005,2728.6,2728.0,5.01059317]
[1738779289013,3.21327005,2728.6,2728.2,4.80250256]
[1738779289410,3.21327005,2728.6,2728.0,4.27764317]
[1738779289717,0.00547005,2728.6,2728.3,4.74617406]
[1738779289923,3.21327005,2728.6,2728.2,4.74617406]
[1738779290217,3.21327005,2728.6,2728.4,4.74617406]
[1738779290409,3.21327005,2728.6,2728.3,4.68346737]
[1738779290716,3.21327005,2728.6,2727.2,0.3672]
[1738779290717,4.50574557,2728.4,2727.4,3.2132938]
[1738779290918,4.50574557,2727.7,2727.4,3.2132938]
[1738779291214,3.2078,2728.0,2727.5,4.68346737]
[1738779291523,3.2078,2728.0,2727.6,4.27764317]
[1738779291913,3.2078,2728.0,2727.7,12.67679501]
[1738779292115,3.2078,2728.0,2727.8,41.533]
[1738779292414,3.2078,2728.0,2727.8,40.8]
[1738779292722,3.2078,2728.3,2728.1,0.73291]
[1738779292917,3.2078,2728.3,2728.1,4.27764317]
[1738779293220,3.2078,2728.3,2728.2,5.60776052]
[1738779293419,3.2078,2728.3,2728.2,45.67486052]
[1738779293615,3.193772,2728.3,2728.2,45.67486052]
[1738779293916,3.21327005,2728.6,2728.2,45.67486052]
[1738779294822,3.21327005,2728.6,2728.3,0.3672]
[1738779295317,3.21327005,2728.6,2728.4,4.69398074]
[1738779295517,0.00547005,2728.6,2728.4,4.69398074]
[1738779295821,0.00547005,2728.6,2728.5,4.27764317]
[1738779296017,3.2078,2729.4,2728.5,4.27764317]
[1738779296219,4.50574557,2729.2,2728.5,17.37438082]
[1738779296423,4.50574557,2729.2,2728.5,16.64159082]
[1738779296718,0.9579,2729.5,2728.3,0.3672]
[1738779296719,3.2078,2728.8,2728.3,0.3672]
[1738779297217,3.2078,2728.8,2728.4,4.74247624]
[1738779298519,3.2078,2728.8,2728.7,0.73276]
[1738779298719,6.11364317,2730.8,2728.5,11.88204582]
[1738779298720,2.99325825,2729.1,2728.5,11.88204582]
[1738779298916,4.50574557,2729.8,2729.3,0.73259]
[1738779299121,4.50574557,2729.9,2729.5,3.2078]
[1738779299316,4.50574557,2729.9,2729.4,4.86891975]
[1738779299520,3.2078,2730.2,2729.6,4.84892285]
[1738779299817,4.50574557,2729.6,2729.5,4.84892285]
[1738779300017,7.71354557,2729.9,2729.7,4.84892285]
[1738779300325,4.50574557,2729.6,2729.5,0.0054938]
[1738779300620,3.2078,2731.1,2730.1,1.83094]
[1738779300824,3.2078,2731.8,2730.9,4.27764317]
[1738779301021,4.50574557,2731.7,2731.3,4.27764317]
[1738779301224,3.2078,2732.1,2731.5,3.2078]
[1738779301619,3.2078,2731.6,2730.9,0.27518349]
[1738779301828,3.2078,2731.0,2730.1,4.27764317]
[1738779302130,3.2078,2730.6,2729.9,41.1664]
[1738779302319,3.2078,2730.6,2729.7,4.64404317]
[1738779302518,1.8802,2731.5,2729.7,4.64404317]
[1738779302519,3.2078,2730.3,2729.7,0.3664]
[1738779302828,3.2078,2730.0,2728.9,24.40944317]
[1738779303130,0.0054938,2730.3,2729.8,4.72472873]
[1738779303324,0.0054938,2730.3,2729.7,9.0078657]
[1738779303523,0.0054938,2730.3,2729.8,3.2078]
[1738779303721,0.0054938,2730.3,2730.2,3.2078]
[1738779304025,0.0054938,2730.3,2730.2,8.03918723]
[1738779304527,4.65395737,2730.3,2730.2,4.83138723]
[1738779304730,4.65395737,2730.3,2729.7,0.0054938]
[1738779305025,0.0054938,2730.3,2729.8,4.79149418]
[1738779305428,0.0054938,2730.3,2729.8,7.99929418]
[1738779305630,0.0054938,2730.3,2729.8,8.73175418]
[1738779305825,0.0054938,2730.3,2730.1,7.48544317]
[1738779306228,0.0054938,2730.3,2730.2,4.74488913]
[1738779307126,4.1246,2731.4,2730.2,17.81228848]
[1738779307326,3.2078,2731.4,2730.7,7.48544317]
[1738779307529,0.9117,2732.7,2731.3,3.2078]
[1738779307530,0.9422,2732.3,2731.3,3.2078]
[1738779307729,0.9117,2732.7,2731.7,3.2078]
[1738779308033,11.97636434,2731.9,2731.8,13.35207337]
[1738779308427,13.68930771,2732.9,2731.8,17.62014337]
[1738779308631,13.68930771,2732.9,2732.8,4.27764317]
[1738779308632,10.07821339,2732.9,2732.8,4.27764317]
[1738779308934,10.07821339,2732.9,2732.8,9.04071765]
[1738779309233,3.2078,2733.8,2732.8,22.62588836]
[1738779309529,3.2078,2733.8,2733.5,4.27764317]
[1738779310032,7.85626357,2733.8,2733.6,4.74853392]
[1738779310233,3.2078,2733.8,2733.6,4.74853392]
[1738779310432,3.2078,2734.1,2733.6,4.74853392]
[1738779310831,3.2078,2733.8,2733.6,4.74853392]
[1738779311234,7.85626357,2733.8,2733.3,4.69254735]
[1738779311434,3.2078,2734.1,2733.7,4.7547101]
[1738779311930,3.2078,2734.1,2733.9,4.27764317]
[1738779312336,3.2078,2734.5,2734.0,4.7547101]
[1738779312535,3.2078,2734.6,2734.0,4.7547101]
[1738779312937,3.2078,2734.3,2734.0,4.7547101]
[1738779313236,3.2078,2734.3,2733.6,4.68751993]
[1738779313538,0.9393,2734.7,2734.1,4.69465706]
[1738779313727,3.2078,2735.2,2734.1,4.69465706]
[1738779313932,3.2078,2735.2,2734.3,4.27764317]
[1738779314233,3.2078,2735.2,2734.4,4.69465706]
[1738779314636,3.2078,2734.9,2734.5,0.0054938]
[1738779315144,3.2078,2734.9,2734.6,4.85269514]
[1738779315533,7.85626357,2734.9,2734.6,4.85269514]
[1738779316340,8.2078,2734.9,2734.5,0.0054938]
[1738779316542,3.2078,2734.6,2733.9,3.2078]
[1738779316737,3.2078,2734.3,2733.6,0.3664]
[1738779317039,3.2078,2734.2,2734.0,4.8326817]
[1738779317333,3.2078,2734.2,2733.4,0.3664]
[1738779317735,3.2078,2734.2,2733.8,4.70133896]
[1738779317942,0.0054938,2734.1,2733.5,4.70683276]
[1738779318138,0.0054938,2734.1,2733.5,0.3718938]
[1738779318345,0.0054938,2734.1,2733.9,4.70133896]
[1738779318346,3.2078,2734.0,2733.9,4.70133896]
[1738779318643,0.0054938,2734.1,2733.8,3.93919]
[1738779318834,0.0054938,2734.1,2733.9,4.74186789]
[1738779319032,0.0054938,2734.1,2734.0,43.34234]
[1738779319234,0.0054938,2734.1,2734.0,42.611]
[1738779319435,0.0054938,2734.1,2734.0,59.97999116]
[1738779320242,0.0054938,2734.1,2734.0,53.16899116]
[1738779320539,0.0054938,2734.1,2734.0,4.74186789]
[1738779320842,0.0054938,2734.1,2733.6,0.3664]
[1738779321043,0.0054938,2734.1,2733.9,4.6602014]
[1738779321237,0.0054938,2734.1,2734.0,4.6602014]
[1738779321433,0.0054938,2734.1,2733.6,0.3664]
[1738779321742,0.0054938,2734.1,2734.0,4.71691877]
[1738779321945,0.0054938,2734.1,2734.0,5.44825877]
[1738779322141,0.0054938,2734.1,2733.8,4.27764317]
[1738779322344,0.0054938,2734.1,2734.0,4.71691877]
[1738779322546,0.0054938,2734.1,2733.9,4.79792099]
[1738779322747,0.0054938,2734.1,2733.8,9.07556416]
[1738779322935,0.0054938,2734.1,2734.0,12.45206093]
[1738779323139,0.0054938,2734.1,2734.0,7.65413994]
[1738779323342,0.0054938,2734.1,2734.0,8.93914]
[1738779323649,3.2078,2734.8,2734.2,0.73127]
[1738779323845,3.2078,2734.8,2734.4,7.48544317]
[1738779324051,3.2078,2734.8,2734.4,3.2078]
[1738779324349,3.2078,2734.8,2734.5,12.44846718]
[1738779324650,3.2078,2734.8,2734.5,4.6919522]
[1738779324947,3.2078,2734.8,2734.3,1.801]
[1738779325152,0.9548,2735.3,2734.4,4.70176121]
[1738779325153,3.2078,2734.5,2734.4,4.70176121]
[1738779325351,3.2078,2734.5,2733.5,0.3718938]
[1738779325551,3.2078,2733.8,2733.5,0.0054938]
[1738779326147,3.2078,2733.8,2733.1,17.2794]
[1738779326351,3.2078,2733.3,2733.1,17.2794]
[1738779326554,3.2078,2733.3,2733.2,4.84490078]
[1738779326749,3.2078,2733.3,2732.0,5.20304317]
[1738779326954,3.2078,2732.7,2732.6,0.3664]
[1738779327152,3.2078,2733.4,2732.9,4.84490078]
[1738779327347,3.2078,2733.0,2732.6,4.84490078]
[1738779327547,3.2078,2732.7,2732.4,0.3718938]
[1738779327749,3.2078,2732.7,2732.4,45.48592314]
[1738779327945,3.2078,2732.7,2732.4,0.0054938]
[1738779328144,0.73178,2732.4,2730.5,11.66736223]
[1738779328349,12.48544317,2732.7,2730.6,0.3664]
[1738779328350,3.2078,2731.2,2730.6,0.3664]
[1738779328556,3.2078,2731.0,2730.7,40.8]
[1738779328955,3.2078,2731.0,2730.8,4.82968866]
[1738779329757,3.2078,2732.1,2730.9,10.81634196]
[1738779330255,3.2078,2732.1,2731.0,4.84209756]
[1738779330456,3.2078,2732.1,2731.5,3.2078]
[1738779330661,3.2078,2732.6,2731.7,0.73195]
[1738779330852,0.9637,2733.3,2732.1,3.93964]
[1738779331057,3.2078,2733.1,2732.4,3.2078]
[1738779331261,0.9637,2733.3,2732.3,3.2078]
[1738779331462,0.0054938,2733.0,2732.5,4.77208057]
[1738779331662,0.0054938,2733.0,2732.5,0.0054938]
[1738779331965,0.0054938,2733.0,2732.6,15.76049992]
[1738779332159,0.0054938,2733.0,2732.8,3.2078]
[1738779332356,0.0054938,2733.0,2732.6,12.55269992]
[1738779332554,7.48544317,2732.7,2730.8,3.2078]
[1738779332860,3.2078,2731.7,2731.6,3.6592]
[1738779333059,3.2078,2731.7,2731.4,3.6592]
[1738779333359,3.2078,2731.7,2731.3,3.6592]
[1738779333565,3.2078,2731.4,2730.6,3.5742]
[1738779333867,3.2078,2731.1,2731.0,8.42202616]
[1738779334164,3.2078,2731.1,2731.0,3.6592]
[1738779337165,3.2078,2729.7,2729.3,3.6592]
[1738779337368,3.2078,2729.4,2729.3,3.6592]
[1738779338264,8.2078,2729.4,2729.2,0.0054938]
[1738779338470,3.2078,2729.4,2729.2,0.0054938]
[1738779338765,3.2078,2729.4,2729.3,3.6592]
[1738779338974,0.0054938,2729.9,2729.3,8.42834059]
[1738779339159,0.0054938,2729.9,2729.8,3.6592]
[1738779339559,0.0054938,2729.9,2729.8,4.8459427]
[1738779339863,0.0054938,2729.9,2729.8,3.6592]
[1738779340265,0.0054938,2729.9,2729.8,8.5051427]
[1738779340563,0.0054938,2729.9,2729.8,4.8459427]
[1738779340761,0.0054938,2729.9,2729.8,3.6592]
[1738779341065,0.0054938,2729.9,2729.8,8.52647616]
[1738779341266,0.0054938,2729.9,2729.2,3.2132938]
[1738779341267,0.0054938,2729.9,2729.2,0.0054938]
[1738779341466,3.2078,2729.6,2729.2,0.0054938]
[1738779341666,3.2078,2729.6,2729.4,4.78244448]
[1738779341869,3.2078,2729.6,2729.3,8.44164448]
[1738779342063,3.2078,2729.6,2729.5,3.6592]
[1738779342268,0.0054938,2729.9,2729.5,8.44164448]
[1738779342464,3.2078,2729.7,2729.4,4.78244448]
[1738779342664,3.2078,2729.7,2729.6,4.74342065]
[1738779342868,3.2078,2729.7,2729.6,8.40262065]
[1738779343069,3.2078,2729.7,2729.6,3.6592]
[1738779343269,3.2078,2729.7,2729.6,8.40262065]
[1738779343466,3.2078,2729.7,2729.2,0.0054938]
[1738779343665,3.2078,2729.4,2729.2,0.0054938]
[1738779343864,3.2078,2729.4,2728.5,0.3664]
[1738779344080,2.61333,2729.6,2728.8,3.6592]
[1738779344368,3.2078,2728.9,2728.8,3.6592]
[1738779344566,1.8808,2729.6,2729.3,3.6592]
[1738779344767,0.0054938,2729.9,2729.5,3.6592]
[1738779344968,3.2078,2730.5,2729.8,3.6537062]
[1738779345167,3.2078,2730.9,2730.4,3.6537062]
[1738779345468,3.2078,2730.9,2730.8,3.6537062]
[1738779345674,3.2078,2730.9,2730.6,3.6537062]
[1738779345964,3.2078,2730.9,2730.1,4.83932618]
[1738779346163,3.2078,2730.4,2730.2,40.8]
[1738779346358,3.2078,2730.4,2729.7,3.2078]
[1738779346563,3.2078,2730.4,2730.2,0.0054938]
[1738779346764,3.2078,2730.4,2730.2,3.6592]
[1738779347066,3.2078,2730.4,2730.3,4.74501331]
[1738779347263,8.2078,2730.4,2728.6,4.27764317]
[1738779347568,3.2078,2729.8,2729.4,3.6537062]
[1738779347761,3.2078,2729.8,2729.2,4.66780397]
[1738779347966,3.2078,2729.5,2728.3,3.2078]
[1738779348274,3.2078,2729.3,2729.1,3.6537062]
[1738779348967,3.2078,2729.3,2728.7,0.0054938]
[1738779349162,3.2078,2728.9,2728.7,0.0054938]
[1738779350770,3.2078,2729.3,2728.8,8.48586169]
[1738779350968,0.0054938,2729.5,2729.2,3.6537062]
[1738779351169,0.0054938,2729.5,2729.4,3.6537062]
[1738779351476,0.0054938,2729.5,2729.4,8.43036363]
[1738779351668,0.0054938,2729.5,2729.4,49.23036363]
[1738779352367,0.0054938,2729.5,2729.4,8.43036363]
[1738779352571,0.0054938,2729.5,2729.4,3.6537062]
[1738779352869,0.0054938,2729.5,2729.4,8.44012312]
[1738779353475,0.0054938,2729.5,2728.8,3.2078]
[1738779353768,3.2078,2729.4,2729.2,3.6537062]
[1738779354473,3.2078,2729.4,2728.8,3.2078]
[1738779354474,3.2078,2729.4,2729.3,8.46890202]
[1738779354668,0.0054938,2729.5,2729.3,8.46890202]
[1738779354868,3.2078,2730.3,2729.4,4.0201062]
[1738779355071,3.2078,2730.3,2729.4,5.19154795]
[1738779355368,3.2078,2730.3,2730.2,3.6537062]
[1738779355575,3.2078,2730.3,2730.1,3.6537062]
[1738779355770,3.2078,2730.8,2730.2,3.6537062]
[1738779355966,3.2078,2730.8,2730.3,3.6537062]
[1738779356167,3.2132938,2730.5,2730.2,4.84819514]
[1738779356372,3.2132938,2730.5,2730.3,3.6592]
[1738779357369,0.0054938,2730.5,2730.4,8.35175349]
[1738779357564,0.73184,2732.2,2730.4,8.35175349]
[1738779357565,3.2078,2731.4,2730.4,53.32194651]
[1738779357767,3.8822,2732.9,2730.4,53.32194651]
[1738779357768,3.2078,2732.2,2731.3,3.6537062]
[1738779357966,3.2078,2732.2,2731.0,1.8843]
[1738779358266,3.2078,2731.9,2731.4,4.72680865]
[1738779358573,3.2078,2731.9,2731.8,3.6537062]
[1738779359075,3.2132938,2731.9,2731.8,3.6537062]
[1738779359568,8.2132938,2731.9,2731.4,0.0054938]
[1738779359766,3.2078,2731.5,2731.4,0.0054938]
[1738779360172,8.2078,2731.5,2730.1,4.30657]
[1738779360368,3.7286,2731.8,2730.5,0.73227]
[1738779360369,3.2078,2731.4,2730.5,0.73227]
[1738779360573,3.2078,2731.4,2731.2,3.6537062]
[1738779361077,3.2078,2731.4,2731.3,8.41490213]
[1738779361278,0.0054938,2731.9,2731.3,8.41490213]
[1738779361574,0.0054938,2731.9,2730.7,3.94002]
[1738779361575,3.2078,2731.4,2731.0,0.0054938]
[1738779361774,9.28313697,2731.9,2731.0,0.0054938]
[1738779361775,3.2078,2731.1,2731.0,0.0054938]
[1738779362167,8.2078,2731.1,2729.7,3.2078]
[1738779362363,8.2078,2731.1,2729.6,2.0348]
[1738779362364,3.2078,2730.3,2729.6,2.0348]
[1738779362571,1.8408,2731.8,2729.9,4.84304206]
[1738779362572,3.2078,2730.0,2729.9,4.84304206]
[1738779362768,3.2078,2730.0,2729.7,4.74256201]
[1738779362968,3.2078,2729.8,2729.7,3.6537062]
[1738779363170,3.2078,2729.8,2729.6,4.74256201]
[1738779363376,3.2078,2729.8,2728.9,2.0348]
[1738779363569,0.0054938,2730.0,2729.5,0.0054938]
[1738779363769,3.2078,2729.6,2729.5,0.0054938]
[1738779363974,0.0054938,2730.0,2729.6,8.36103281]
[1738779364174,3.2078,2729.7,2729.6,3.6537062]
[1738779364783,3.2078,2729.7,2729.6,8.36401028]
[1738779365075,3.2132938,2730.0,2729.6,8.36401028]
[1738779365280,3.2132938,2730.0,2729.9,3.6537062]
[1738779365776,3.2132938,2730.0,2729.9,8.42301491]
[1738779365972,3.2132938,2730.0,2729.9,3.6537062]
[1738779366169,3.2132938,2730.0,2729.5,0.0054938]
[1738779366170,8.2132938,2730.0,2729.5,0.0054938]
[1738779366471,3.2078,2729.6,2729.5,0.0054938]
[1738779366874,8.2078,2729.6,2728.6,3.2078]
[1738779367073,3.2078,2729.1,2728.8,3.6537062]
[1738779367267,1.9708,2729.9,2728.7,4.68351132]
[1738779367467,3.2078,2729.7,2729.4,3.6537062]
[1738779367778,3.2078,2729.7,2728.7,7.80741831]
[1738779367779,3.2078,2729.3,2728.8,4.77515842]
[1738779367970,3.2078,2729.0,2728.8,4.77515842]
[1738779368272,3.2078,2729.0,2728.1,0.3664]
[1738779368467,3.2078,2729.4,2728.6,0.0054938]
[1738779368673,3.2078,2729.3,2729.1,3.6537062]
[1738779368871,3.2078,2729.3,2729.0,3.6537062]
[1738779369075,3.2078,2729.3,2729.2,3.6537062]
[1738779369276,3.2078,2730.7,2729.2,9.8095973]
[1738779369470,2.918,2733.2,2729.2,9.8095973]
[1738779369471,3.2078,2731.0,2730.6,0.4404124]
[1738779369667,3.2078,2731.5,2731.2,0.4404124]
[1738779369875,3.2078,2731.9,2731.5,0.4404124]
[1738779370177,3.2078,2731.9,2731.2,40.8]
[1738779370178,3.2078,2732.2,2731.0,3.2078]
[1738779370373,3.2078,2732.2,2731.8,0.4404124]
[1738779370878,3.2078,2732.2,2731.3,7.91478906]
[1738779370879,3.2132938,2731.9,2731.3,0.0054938]
[1738779371077,3.2078,2731.4,2731.3,0.0054938]
[1738779371473,0.0054938,2731.9,2731.3,0.4459062]
[1738779371677,3.2078,2731.8,2731.5,0.4404124]
[1738779372180,3.2078,2731.8,2731.3,0.0054938]
[1738779372480,3.2078,2731.8,2731.4,0.4404124]
[1738779373682,3.2078,2731.8,2731.5,0.4404124]
[1738779374776,0.0054938,2731.9,2731.7,0.4404124]
[1738779374973,0.0054938,2731.9,2731.8,0.4404124]
[1738779375979,0.0054938,2731.9,2731.8,5.08960947]
[1738779376376,3.2078,2733.4,2731.8,9.64919707]
[1738779376579,3.2078,2733.4,2733.1,0.4404124]
[1738779376779,4.0316,2733.5,2733.1,0.4404124]
[1738779376978,3.2078,2733.8,2733.2,0.4404124]
[1738779377477,3.2078,2733.5,2733.2,0.4404124]
[1738779377674,3.2078,2733.5,2733.4,0.4404124]
[1738779377871,3.2078,2733.5,2733.2,0.4459062]
[1738779378478,0.73153,2733.3,2733.2,0.0054938]
[1738779378681,3.2078,2733.5,2731.9,3.2078]
[1738779378976,3.2078,2733.5,2733.3,0.4404124]
[1738779379182,3.2078,2733.5,2733.4,0.4404124]
[1738779379378,3.2078,2733.5,2732.3,3.2078]
[1738779379579,3.2078,2733.0,2732.9,0.4404124]
[1738779379785,0.0054938,2733.8,2733.0,0.4404124]
[1738779379786,3.2078,2733.5,2733.0,0.4404124]
[1738779380181,3.2078,2733.5,2732.6,0.0054938]
[1738779380379,3.2078,2733.5,2733.2,0.4404124]
[1738779380882,3.2078,2733.5,2732.7,4.69531618]
[1738779381082,3.2078,2733.5,2732.6,0.0054938]
[1738779381083,3.2078,2732.8,2732.6,0.0054938]
[1738779381479,3.2078,2733.4,2732.7,5.30136377]
[1738779381679,3.2078,2733.4,2732.7,8.06875137]
[1738779381884,3.2078,2733.4,2733.1,0.4404124]
[1738779382080,3.2078,2733.4,2733.3,0.4404124]
[1738779382386,3.2078,2733.7,2733.3,5.14279456]
[1738779382579,0.0054938,2733.8,2733.6,0.4404124]
[1738779382784,0.0054938,2733.8,2733.3,4.70238216]
[1738779382785,0.0054938,2733.8,2733.7,0.4404124]
[1738779383587,0.0054938,2733.8,2733.7,5.19775642]
[1738779383982,3.2078,2735.5,2733.7,12.25657491]
[1738779384183,3.2078,2735.5,2734.4,3.2078]
[1738779384388,3.2078,2735.5,2734.7,3.2078]
[1738779384589,3.2078,2736.0,2735.0,3.2078]
[1738779384790,1.943,2737.0,2734.7,40.8]
[1738779384791,3.2078,2736.4,2735.7,3.2078]
[1738779385180,3.2078,2736.4,2735.8,0.00548356]
[1738779385181,0.00548356,2736.3,2735.8,0.00548356]
[1738779385385,0.00548356,2736.3,2735.8,5.01608785]
[1738779385683,3.2078,2736.1,2735.8,0.00548356]
[1738779385886,0.00548356,2736.3,2735.8,0.00548356]
[1738779386382,0.00548356,2736.3,2736.1,3.2078]
[1738779386584,3.2078,2737.5,2736.2,4.27764317]
[1738779386790,3.2078,2737.5,2736.9,3.2078]
[1738779387098,3.2078,2737.5,2736.2,16.54023561]
[1738779387099,3.2078,2737.9,2736.5,3.2078]
[1738779387292,3.2078,2737.5,2737.0,4.75788845]
[1738779387482,3.2078,2737.5,2736.3,0.3656]
[1738779387483,3.2078,2737.5,2736.6,4.75788845]
[1738779387683,3.2078,2737.5,2736.5,3.2078]
[1738779387883,3.2078,2737.2,2737.0,0.00548356]
[1738779388989,3.21328356,2737.5,2737.1,4.72932081]
[1738779389492,3.21328356,2737.5,2737.0,0.00548356]
[1738779389788,3.2078,2737.4,2737.0,0.00548356]
[1738779390687,0.00548356,2737.5,2737.0,0.00548356]
[1738779390688,3.2078,2737.1,2737.0,0.00548356]
[1738779391291,3.2078,2737.4,2737.0,0.00548356]
[1738779391486,0.00548356,2737.5,2737.0,4.82341828]
[1738779393388,3.2078,2737.1,2737.0,0.00548356]
[1738779394193,8.2078,2737.1,2737.0,0.00548356]
[1738779394592,8.2078,2737.1,2736.1,3.2078]
[1738779394901,3.2078,2736.7,2736.2,4.78572703]
[1738779395300,0.00548356,2737.5,2736.4,3.93849]
[1738779395497,3.2078,2737.2,2736.4,3.2078]
[1738779395697,3.2078,2737.4,2736.5,4.64448967]
[1738779395999,3.2078,2737.3,2736.5,0.00548356]
[1738779396196,3.2078,2737.0,2736.5,0.00548356]
[1738779396695,3.2078,2736.6,2736.5,0.00548356]
[1738779396892,3.2078,2736.9,2736.5,0.00548356]
[1738779397092,3.93838,2736.9,2736.5,0.00548356]
[1738779397300,3.2078,2736.6,2736.5,0.00548356]
[1738779397491,3.93845,2736.6,2735.1,2.3429]
[1738779397691,4.27764317,2736.8,2735.1,2.3429]
[1738779397692,3.2078,2735.9,2735.1,2.7085]
[1738779397890,3.2078,2735.9,2735.3,4.81341004]
[1738779398093,3.2078,2735.6,2735.2,4.81341004]
[1738779398293,3.2078,2735.6,2734.9,20.1108]
[1738779398489,3.2078,2735.6,2734.9,3.2078]
[1738779398698,3.2078,2736.4,2735.3,4.81341004]
[1738779398896,0.00548356,2735.5,2735.4,0.73097]
[1738779399095,3.2078,2736.0,2735.4,7.48544317]
[1738779399297,3.2078,2736.0,2735.4,7.8931799]
[1738779399493,3.2078,2736.0,2735.4,3.2078]
[1738779399892,3.2078,2736.0,2735.5,4.79461857]
[1738779400406,3.21328356,2736.0,2735.5,4.79461857]
[1738779400798,0.00548356,2736.0,2735.5,4.79461857]
[1738779400999,3.2078,2736.7,2735.8,4.27764317]
[1738779401301,3.2078,2737.4,2736.3,3.2078]
[1738779401705,3.2078,2737.4,2736.4,14.42708362]
[1738779402202,4.0696,2738.1,2736.4,6.95321451]
[1738779402203,3.2078,2736.9,2736.4,6.95321451]
[1738779402402,0.00548356,2737.2,2736.6,0.00548356]
[1738779403001,0.73052,2737.1,2736.7,4.69124405]
[1738779403199,3.2078,2737.0,2736.6,0.00548356]
[1738779404697,3.93834,2737.0,2736.6,0.00548356]
[1738779404893,3.2078,2736.7,2736.6,0.00548356]
[1738779405699,3.93842,2736.7,2736.6,0.00548356]
[1738779405907,8.2078,2736.7,2735.2,0.3656]
[1738779406101,0.73078,2736.1,2735.0,7.48544317]
[1738779406393,3.2078,2735.9,2735.5,4.75180383]
[1738779406603,3.2078,2736.7,2735.4,7.48544317]
[1738779406798,3.2078,2736.4,2735.6,4.82575426]
[1738779406996,3.2078,2736.7,2735.6,4.82575426]
[1738779407199,0.00548356,2736.3,2735.8,0.00548356]